lending/lending_fUSD_20240723
["ID","MTS","AMOUNT","RATE_DAILY","PERIOD"]
[333028015,1721769650013,154.83,0.000136,31]
[333028016,1721769650076,154.83,0.000136,31]
[333028017,1721769650141,154.83,0.000136,31]
[333028018,1721769650210,154.83,0.000136,31]
[333028019,1721769650247,154.83,0.000136,31]
[333028021,1721769890481,604.87,8.219e-05,2]
[333028024,1721770069743,9317.26444895,8.219e-05,2]
[333028025,1721770069766,2205.45554232,8.219e-05,2]
[333028041,1721770163193,7566.63074584,8.219e-05,2]
[333028042,1721770195752,227.91371184,8.219e-05,2]
[333028043,1721770195777,9076.00865209,8.219e-05,2]
[333028044,1721770209054,155.0,8.219e-05,2]
[333028049,1721770231610,-267.23393513,9.638e-05,2]
[333028050,1721770231621,-55.27338587,9.638e-05,2]
[333028051,1721770231631,-1027.37,9.687e-05,2]
[333028052,1721770231641,-250.0,9.687e-05,2]
[333028053,1721770231651,-470.85002167,9.759e-05,2]
[333028054,1721770231692,-529.14997833,9.759e-05,2]
[333028055,1721770231702,-300.0,9.791e-05,2]
[333028056,1721770231711,-3258.38374272,9.792e-05,2]
[333028057,1721770231722,-1572.82495648,9.792e-05,2]
[333028058,1721770231835,-2783.83701633,9.792e-05,2]
[333028069,1721770237619,-579.46660205,9.792e-05,2]
[333028070,1721770237698,-300.11965555,9.792e-05,2]
[333028071,1721770237710,-1522.57839701,9.792e-05,2]
[333028072,1721770237722,-1491.11962986,9.792e-05,2]
[333028073,1721770237732,-168.41,9.875e-05,2]
[333028074,1721770237741,-420.16,9.973e-05,2]
[333028075,1721770237751,-87.99880286,9.973e-05,2]
[333028076,1721770237763,-332.16119714,9.973e-05,2]
[333028077,1721770237773,-420.16,9.973e-05,2]
[333028078,1721770237786,-420.16,9.973e-05,2]
[333028079,1721770237795,-419.51,9.973e-05,2]
[333028080,1721770237805,-3133.07,0.00010007,2]
[333028081,1721770237815,-499.99,0.00010007,2]
[333028082,1721770237827,-1262.78,0.00010102,2]
[333028083,1721770237837,-300.0,0.00010247,2]
[333028084,1721770237848,-217.08,0.00010247,2]
[333028085,1721770237858,-355.81,0.00010247,2]
[333028086,1721770237868,-355.81,0.00010247,2]
[333028087,1721770237878,-355.45,0.00010247,2]
[333028088,1721770237887,-604.87,0.00010457,2]
[333028089,1721770237896,-154.90969968,0.00010469,2]
[333028090,1721770237906,-150.0,0.00010546,2]
[333028091,1721770237917,-23440.78630092,0.00010547,2]
[333028092,1721770237927,-1000.0,0.00010556,2]
[333028093,1721770237937,-789.65,0.000106,2]
[333028094,1721770237948,-1467.62072,0.0001069,2]
[333028095,1721770237957,-150.29633,0.00010692,2]
[333028096,1721770237967,-247.952683,0.000107,2]
[333028097,1721770237976,-334.5742,0.000107,2]
[333028098,1721770237986,-1235.6588,0.000107,2]
[333028099,1721770237996,-26065.44992639,0.000107,2]
[333028100,1721770238015,-3942.87027361,0.000107,2]
[333028102,1721770238024,-472.06214986,0.000107,2]
[333028104,1721770238036,-397.56493068,0.000107,2]
[333028105,1721770238048,-3597.56620416,0.000107,2]
[333028106,1721770238059,-4113.21141485,0.000107,2]
[333028107,1721770238082,-783.78952564,0.000107,2]
[333028108,1721770238094,-1814.56851,0.000107,2]
[333028109,1721770238113,-319.8697331,0.000107,2]
[333028110,1721770238123,-10659.5032,0.000107,2]
[333028111,1721770238132,-15501.2049,0.000107,2]
[333028112,1721770238142,-3175.6556,0.000107,2]
[333028113,1721770238152,-420.0,0.0001077,2]
[333028114,1721770238161,-637.41604908,0.00010773,2]
[333028115,1721770238170,-1105.7059,0.0001078,2]
[333028116,1721770238180,-165.03667698,0.0001078,2]
[333028117,1721770238190,-156.58238291,0.0001078,2]
[333028118,1721770238199,-168.85440126,0.0001078,2]
[333028119,1721770238209,-38358.0,0.0001079,2]
[333028120,1721770238218,-1663.0,0.0001079,2]
[333028121,1721770238227,-1669.0,0.0001079,2]
[333028122,1721770238237,-1202.0,0.0001079,2]
[333028123,1721770238246,-107673.32654754,0.000108,2]
[333028124,1721770238258,-2883.84825415,0.000108,2]
[333028125,1721770238269,-28745.57101361,0.000108,2]
[333028128,1721770239630,-150.0,0.0001079,2]
[333028129,1721770239639,-957.68259837,0.000108,2]
[333028130,1721770239650,-313.637495,0.000108,2]
[333028131,1721770239726,-1023.25,0.000108,2]
[333028132,1721770239739,-1357.4,0.000108,2]
[333028133,1721770239807,-63012.29399523,0.000108,2]
[333028134,1721770239820,-439.10667098,0.000108,2]
[333028135,1721770239839,-500.0,0.000108,2]
[333028136,1721770239903,-502.62768369,0.000108,2]
[333028137,1721770240027,-617.17037288,0.000108,2]
[333028138,1721770240038,-2844.67585452,0.000108,2]
[333028149,1721770242770,-2174.52618405,0.000108,2]
[333028150,1721770242784,-5327.57682,0.000108,2]
[333028151,1721770243103,-48249.09836178,0.000108,2]
[333028152,1721770243116,-7006.79632143,0.000108,2]
[333028153,1721770243126,-637.41604906,0.00010805,2]
[333028154,1721770243135,-637.41604906,0.00010837,2]
[333028155,1721770243145,-637.41604906,0.00010868,2]
[333028156,1721770243155,-14242.5644697,0.00010873,2]
[333028157,1721770243165,-2305.04596217,0.00010879,2]
[333028158,1721770243175,-585946.24049144,0.0001088,2]
[333028159,1721770243186,-2804.45,0.0001088,2]
[333028177,1721770245891,-730.27883011,0.0001088,2]
[333028178,1721770245902,-7069.64315569,0.0001088,2]
[333028179,1721770245923,-332.83,0.0001088,2]
[333028180,1721770245935,-6317.86258978,0.0001088,2]
[333028181,1721770245971,-1702.62345,0.0001088,2]
[333028182,1721770246010,-380.34541189,0.0001088,2]
[333028183,1721770246022,-3001.3,0.0001088,2]
[333028184,1721770246034,-134013.03400118,0.0001088,2]
[333028185,1721770246044,-14238.81841978,0.0001088,2]
[333028186,1721770246053,-463.02896679,0.000109,2]
[333028188,1721770246063,-637.41604906,0.000109,2]
[333028189,1721770246072,-7144.73799597,0.000109,2]
[333028190,1721770246082,-488.9502685,0.000109,2]
[333028191,1721770246092,-214.25089341,0.000109,2]
[333028192,1721770246102,-154.90969968,0.00010957,2]
[333028193,1721770246112,-500.0,0.00010958,2]
[333028194,1721770246122,-288.72200667,0.00010958,2]
[333028195,1721770246132,-500.0,0.00010958,2]
[333028197,1721770246141,-501.39789904,0.00010958,2]
[333028198,1721770246151,-498.0,0.00010958,2]
[333028199,1721770246160,-502.57868141,0.00010958,2]
[333028200,1721770246170,-500.0,0.00010958,2]
[333028201,1721770246179,-505.53739252,0.00010958,2]
[333028202,1721770246188,-500.0,0.00010958,2]
[333028203,1721770246197,-485.99,0.00010958,2]
[333028204,1721770246207,-500.0,0.00010958,2]
[333028205,1721770246217,-503.22882613,0.00010958,2]
[333028206,1721770246226,-614.83,0.00010958,2]
[333028207,1721770246235,-527.26,0.00010958,2]
[333028208,1721770246245,-500.0,0.00010958,2]
[333028209,1721770246254,-500.0,0.00010958,2]
[333028210,1721770246264,-246.56,0.00010958,2]
[333028211,1721770246274,-500.0,0.00010958,2]
[333028212,1721770246284,-500.0,0.00010958,2]
[333028213,1721770246293,-576.67,0.00010958,2]
[333028214,1721770246302,-514.27479066,0.00010958,2]
[333028216,1721770246312,-500.0,0.00010958,2]
[333028217,1721770246321,-500.0,0.00010958,2]
[333028218,1721770246330,-500.0,0.00010958,2]
[333028219,1721770246340,-617.44,0.00010958,2]
[333028220,1721770246350,-500.0,0.00010958,2]
[333028221,1721770246360,-538.88328893,0.00010958,2]
[333028222,1721770246369,-500.0,0.00010958,2]
[333028223,1721770246378,-500.0,0.00010958,2]
[333028224,1721770246388,-505.73,0.00010958,2]
[333028225,1721770246398,-500.0,0.00010958,2]
[333028226,1721770246407,-199.21,0.00010958,2]
[333028227,1721770246416,-502.48304539,0.00010958,2]
[333028228,1721770246425,-500.0,0.00010958,2]
[333028229,1721770246434,-235.51,0.00010958,2]
[333028230,1721770246444,-552.02,0.00010958,2]
[333028231,1721770246453,-500.0,0.00010958,2]
[333028232,1721770246462,-500.0,0.00010958,2]
[333028233,1721770246472,-200.01,0.00010958,2]
[333028234,1721770246481,-555.68208153,0.00010958,2]
[333028235,1721770246491,-500.0,0.00010958,2]
[333028236,1721770246500,-500.0,0.00010958,2]
[333028237,1721770246509,-418.12,0.00010958,2]
[333028238,1721770246520,-500.0,0.00010958,2]
[333028239,1721770246529,-576.05,0.00010958,2]
[333028240,1721770246539,-500.0,0.00010958,2]
[333028241,1721770246549,-500.0,0.00010958,2]
[333028242,1721770246558,-500.0,0.00010958,2]
[333028243,1721770246567,-500.0,0.00010958,2]
[333028244,1721770246577,-500.0,0.00010958,2]
[333028245,1721770246587,-479.47,0.00010958,2]
[333028246,1721770246596,-500.0,0.00010958,2]
[333028247,1721770246606,-500.0,0.00010958,2]
[333028248,1721770246615,-500.0,0.00010958,2]
[333028249,1721770246625,-500.0,0.00010958,2]
[333028250,1721770246858,-500.0,0.00010958,2]
[333028251,1721770246869,-481.59,0.00010958,2]
[333028252,1721770246879,-500.0,0.00010958,2]
[333028253,1721770246889,-335.43400999,0.00010958,2]
[333028254,1721770246899,-566.62,0.00010958,2]
[333028255,1721770246909,-500.0,0.00010958,2]
[333028256,1721770246919,-500.0,0.00010958,2]
[333028257,1721770246928,-621.26,0.00010958,2]
[333028258,1721770246938,-500.0,0.00010958,2]
[333028259,1721770246948,-553.75,0.00010958,2]
[333028260,1721770246958,-500.0,0.00010958,2]
[333028261,1721770246968,-500.0,0.00010958,2]
[333028262,1721770246977,-519.62471306,0.00010958,2]
[333028263,1721770246987,-204.77169774,0.00010958,2]
[333028264,1721770246996,-500.0,0.00010958,2]
[333028265,1721770247005,-500.0,0.00010958,2]
[333028266,1721770247014,-500.0,0.00010958,2]
[333028267,1721770247024,-500.0,0.00010958,2]
[333028268,1721770247033,-500.0,0.00010958,2]
[333028269,1721770247043,-500.0,0.00010958,2]
[333028270,1721770247052,-500.0,0.00010958,2]
[333028271,1721770247062,-462.8407368,0.00010958,2]
[333028272,1721770247071,-500.0,0.00010958,2]
[333028273,1721770247080,-500.0,0.00010958,2]
[333028274,1721770247090,-502.80215745,0.00010958,2]
[333028275,1721770247099,-500.0,0.00010958,2]
[333028276,1721770247109,-500.0,0.00010958,2]
[333028277,1721770247119,-500.0,0.00010958,2]
[333028278,1721770247128,-500.0,0.00010958,2]
[333028279,1721770247138,-500.0,0.00010958,2]
[333028280,1721770247148,-500.0,0.00010958,2]
[333028281,1721770247157,-356.59,0.00010958,2]
[333028282,1721770247167,-500.0,0.00010958,2]
[333028283,1721770247176,-207.42,0.00010958,2]
[333028284,1721770247186,-500.0,0.00010958,2]
[333028285,1721770247195,-500.0,0.00010958,2]
[333028286,1721770247204,-199.07,0.00010958,2]
[333028287,1721770247214,-500.0,0.00010958,2]
[333028288,1721770247223,-500.0,0.00010958,2]
[333028289,1721770247232,-500.0,0.00010958,2]
[333028290,1721770247241,-341.44,0.00010958,2]
[333028291,1721770247251,-500.0,0.00010958,2]
[333028292,1721770247260,-500.0,0.00010958,2]
[333028293,1721770247272,-500.0,0.00010958,2]
[333028294,1721770247281,-500.0,0.00010958,2]
[333028295,1721770247290,-482.93,0.00010958,2]
[333028296,1721770247300,-500.0,0.00010958,2]
[333028297,1721770247309,-500.0,0.00010958,2]
[333028298,1721770247319,-241.64,0.00010958,2]
[333028299,1721770247328,-500.0,0.00010958,2]
[333028300,1721770247338,-500.0,0.00010958,2]
[333028301,1721770247348,-500.0,0.00010958,2]
[333028302,1721770247358,-500.0,0.00010958,2]
[333028303,1721770247367,-185.95,0.00010958,2]
[333028304,1721770247377,-500.0,0.00010958,2]
[333028305,1721770247387,-500.0,0.00010958,2]
[333028306,1721770247397,-500.0,0.00010958,2]
[333028307,1721770247406,-500.0,0.00010958,2]
[333028308,1721770247414,-500.0,0.00010958,2]
[333028309,1721770247424,-500.0,0.00010958,2]
[333028310,1721770247434,-500.0,0.00010958,2]
[333028311,1721770247444,-585.25,0.00010958,2]
[333028312,1721770247453,-500.0,0.00010958,2]
[333028313,1721770247463,-500.0,0.00010958,2]
[333028314,1721770247472,-500.0,0.00010958,2]
[333028315,1721770247482,-500.0,0.00010958,2]
[333028316,1721770247491,-500.0,0.00010958,2]
[333028317,1721770247501,-500.0,0.00010958,2]
[333028318,1721770247510,-500.0,0.00010958,2]
[333028319,1721770247521,-500.0,0.00010958,2]
[333028320,1721770247531,-500.0,0.00010958,2]
[333028321,1721770247543,-504.66,0.00010958,2]
[333028322,1721770247553,-509.24994281,0.00010958,2]
[333028323,1721770247562,-500.0,0.00010958,2]
[333028324,1721770247571,-500.0,0.00010958,2]
[333028325,1721770247581,-500.0,0.00010958,2]
[333028326,1721770247590,-500.0,0.00010958,2]
[333028327,1721770247599,-381.93,0.00010958,2]
[333028328,1721770247610,-500.0,0.00010958,2]
[333028329,1721770247619,-500.0,0.00010958,2]
[333028330,1721770247629,-500.0,0.00010958,2]
[333028331,1721770247638,-500.0,0.00010958,2]
[333028332,1721770247648,-500.0,0.00010958,2]
[333028333,1721770247657,-500.0,0.00010958,2]
[333028334,1721770247666,-500.0,0.00010958,2]
[333028335,1721770247676,-500.0,0.00010958,2]
[333028336,1721770247686,-442.97,0.00010958,2]
[333028337,1721770247696,-500.0,0.00010958,2]
[333028338,1721770247706,-500.0,0.00010958,2]
[333028339,1721770247716,-500.0,0.00010958,2]
[333028340,1721770247726,-500.0,0.00010958,2]
[333028341,1721770247736,-500.0,0.00010958,2]
[333028342,1721770247745,-500.0,0.00010958,2]
[333028343,1721770247755,-263.29,0.00010958,2]
[333028344,1721770247764,-500.0,0.00010958,2]
[333028345,1721770247774,-500.0,0.00010958,2]
[333028346,1721770247784,-467.08,0.00010958,2]
[333028347,1721770247795,-500.0,0.00010958,2]
[333028348,1721770247805,-279.52,0.00010958,2]
[333028349,1721770247814,-500.0,0.00010958,2]
[333028350,1721770247824,-500.0,0.00010958,2]
[333028351,1721770247834,-500.0,0.00010958,2]
[333028352,1721770247844,-500.0,0.00010958,2]
[333028353,1721770247853,-194.68,0.00010958,2]
[333028354,1721770247863,-283.6595515,0.00010958,2]
[333028355,1721770247873,-500.0,0.00010958,2]
[333028356,1721770247883,-500.0,0.00010958,2]
[333028357,1721770247892,-500.0,0.00010958,2]
[333028358,1721770247902,-500.0,0.00010958,2]
[333028359,1721770247911,-500.0,0.00010958,2]
[333028360,1721770247921,-500.0,0.00010958,2]
[333028361,1721770247930,-501.3381952,0.00010958,2]
[333028362,1721770247941,-500.0,0.00010958,2]
[333028363,1721770247950,-225.72,0.00010958,2]
[333028364,1721770247959,-500.0,0.00010958,2]
[333028365,1721770247970,-500.0,0.00010958,2]
[333028366,1721770247979,-500.0,0.00010958,2]
[333028367,1721770247990,-500.0,0.00010958,2]
[333028368,1721770247999,-500.0,0.00010958,2]
[333028369,1721770248009,-500.0,0.00010958,2]
[333028370,1721770248019,-386.68142865,0.00010958,2]
[333028371,1721770248029,-500.0,0.00010958,2]
[333028372,1721770248039,-500.0,0.00010958,2]
[333028373,1721770248049,-500.0,0.00010958,2]
[333028374,1721770248059,-500.0,0.00010958,2]
[333028375,1721770248077,-500.0,0.00010958,2]
[333028376,1721770248093,-500.0,0.00010958,2]
[333028377,1721770248103,-313.637495,0.00010958,2]
[333028378,1721770248115,-500.0,0.00010958,2]
[333028379,1721770248125,-500.0,0.00010958,2]
[333028380,1721770248136,-500.0,0.00010958,2]
[333028381,1721770248147,-500.0,0.00010958,2]
[333028382,1721770248157,-500.0,0.00010958,2]
[333028383,1721770248167,-738.56,0.00010958,2]
[333028384,1721770248177,-738.56,0.00010958,2]
[333028385,1721770248187,-738.56,0.00010958,2]
[333028386,1721770248197,-738.56,0.00010958,2]
[333028387,1721770248207,-738.56,0.00010958,2]
[333028388,1721770248217,-738.56,0.00010958,2]
[333028389,1721770248227,-500.0,0.00010958,2]
[333028390,1721770248238,-500.0,0.00010958,2]
[333028391,1721770248248,-500.0,0.00010958,2]
[333028392,1721770248258,-500.0,0.00010958,2]
[333028393,1721770248268,-500.0,0.00010958,2]
[333028394,1721770248278,-500.0,0.00010958,2]
[333028395,1721770248289,-500.0,0.00010958,2]
[333028396,1721770248300,-500.0,0.00010958,2]
[333028397,1721770248310,-433.4,0.00010958,2]
[333028398,1721770248320,-500.0,0.00010958,2]
[333028399,1721770248330,-500.0,0.00010958,2]
[333028400,1721770248341,-500.0,0.00010958,2]
[333028401,1721770248351,-500.0,0.00010958,2]
[333028402,1721770248361,-500.0,0.00010958,2]
[333028403,1721770248371,-500.0,0.00010958,2]
[333028404,1721770248381,-500.0,0.00010958,2]
[333028405,1721770248391,-500.0,0.00010958,2]
[333028406,1721770248400,-500.0,0.00010958,2]
[333028407,1721770248410,-500.0,0.00010958,2]
[333028408,1721770248419,-500.0,0.00010958,2]
[333028409,1721770248429,-500.0,0.00010958,2]
[333028410,1721770248440,-772.29,0.00010958,2]
[333028411,1721770248450,-772.29,0.00010958,2]
[333028412,1721770248459,-772.29,0.00010958,2]
[333028413,1721770248470,-772.29,0.00010958,2]
[333028414,1721770248479,-772.29,0.00010958,2]
[333028415,1721770248489,-772.29,0.00010958,2]
[333028416,1721770248499,-500.0,0.00010958,2]
[333028417,1721770248508,-500.0,0.00010958,2]
[333028418,1721770248519,-182.48,0.00010958,2]
[333028419,1721770248529,-500.0,0.00010958,2]
[333028420,1721770248539,-500.0,0.00010958,2]
[333028421,1721770248549,-500.0,0.00010958,2]
[333028422,1721770248559,-500.0,0.00010958,2]
[333028423,1721770248569,-500.0,0.00010958,2]
[333028424,1721770248579,-500.0,0.00010958,2]
[333028425,1721770248589,-334.78853614,0.00010958,2]
[333028426,1721770248599,-500.0,0.00010958,2]
[333028427,1721770248610,-500.0,0.00010958,2]
[333028428,1721770248620,-500.0,0.00010958,2]
[333028429,1721770248630,-500.0,0.00010958,2]
[333028430,1721770248640,-500.0,0.00010958,2]
[333028431,1721770248651,-988.17,0.00010958,2]
[333028432,1721770248661,-988.17,0.00010958,2]
[333028433,1721770248671,-988.17,0.00010958,2]
[333028434,1721770248680,-988.17,0.00010958,2]
[333028435,1721770248690,-500.0,0.00010958,2]
[333028436,1721770248700,-988.17,0.00010958,2]
[333028437,1721770248709,-500.0,0.00010958,2]
[333028438,1721770248720,-500.0,0.00010958,2]
[333028439,1721770248729,-500.0,0.00010958,2]
[333028440,1721770248739,-465.31,0.00010958,2]
[333028441,1721770248749,-500.0,0.00010958,2]
[333028442,1721770248759,-230.27883011,0.00010958,2]
[333028443,1721770248769,-500.0,0.00010958,2]
[333028444,1721770248779,-500.0,0.00010958,2]
[333028445,1721770248793,-500.0,0.00010958,2]
[333028446,1721770248803,-500.0,0.00010958,2]
[333028447,1721770248814,-500.0,0.00010958,2]
[333028448,1721770248827,-500.0,0.00010958,2]
[333028449,1721770248838,-500.0,0.00010958,2]
[333028450,1721770248848,-500.0,0.00010958,2]
[333028451,1721770248860,-500.0,0.00010958,2]
[333028452,1721770248873,-500.0,0.00010958,2]
[333028453,1721770248885,-500.0,0.00010958,2]
[333028454,1721770248896,-500.0,0.00010958,2]
[333028455,1721770248908,-500.0,0.00010958,2]
[333028456,1721770248919,-500.0,0.00010958,2]
[333028457,1721770248930,-500.0,0.00010958,2]
[333028458,1721770248940,-173.83900622,0.00010958,2]
[333028459,1721770256201,154.85,0.000136,31]
[333028460,1721770256258,154.85,0.000136,31]
[333028461,1721770256313,154.85,0.000136,31]
[333028462,1721770256379,154.85,0.000136,31]
[333028463,1721770256441,154.85,0.000136,31]
[333028464,1721770256499,154.85,0.000136,31]
[333028465,1721770256572,154.85,0.000136,31]
[333028466,1721770256619,154.85,0.000136,31]
[333028467,1721770405594,740.63,8.219e-05,2]
[333028468,1721770453059,28.36134791,8.219e-05,2]
[333028469,1721770453080,150.31675596,8.219e-05,2]
[333028470,1721770568305,173.46,8.219e-05,2]
[333028474,1721770860953,154.87,0.000136,31]
[333028475,1721770861102,154.87,0.000136,31]
[333028476,1721770861138,154.87,0.000136,31]
[333028477,1721770861191,154.87,0.000136,31]
[333028478,1721770861219,154.87,0.000136,31]
[333028479,1721770861256,154.87,0.000136,31]
[333028480,1721770861331,154.87,0.000136,31]
[333028481,1721770861393,154.87,0.000136,31]
[333028486,1721770953885,703.59,8.219e-05,2]
[333028490,1721771013200,490.00000045,0.00015,30]
[333028505,1721771433229,-250.0,9.56e-05,2]
[333028506,1721771433239,-1357.32,9.601e-05,2]
[333028507,1721771433250,-1000.0,9.61e-05,2]
[333028508,1721771433260,-5.00441227,9.633e-05,2]
[333028509,1721771433275,-254.68592052,9.633e-05,2]
[333028510,1721771433288,-871.72966721,9.633e-05,2]
[333028511,1721771433298,-177.09,9.781e-05,2]
[333028513,1721771433308,-159.0,9.851e-05,2]
[333028515,1721771433318,-150.0,9.863e-05,2]
[333028517,1721771433328,-165.21,9.873e-05,2]
[333028519,1721771433338,-165.21,9.898e-05,2]
[333028521,1721771433348,-128.23277507,9.923e-05,2]
[333028523,1721771433360,-36.97722493,9.923e-05,2]
[333028525,1721771433371,-300.0,9.961e-05,2]
[333028527,1721771433381,-300.0,9.961e-05,2]
[333028530,1721771433393,-835.99277507,9.962e-05,2]
[333028532,1721771433405,-3547.04814111,9.962e-05,2]
[333028534,1721771433418,-764.60626949,9.962e-05,2]
[333028538,1721771433441,-5888.11543341,9.962e-05,2]
[333028540,1721771433455,-265.42675184,9.962e-05,2]
[333028542,1721771433468,-1132.17988324,9.962e-05,2]
[333028544,1721771433480,-155.0,0.0001,2]
[333028547,1721771433490,-210.71985697,0.0001,2]
[333028549,1721771433500,-567.51,0.00010055,2]
[333028551,1721771433510,-348.14,0.00010192,2]
[333028553,1721771433520,-3118.9658,0.000104,2]
[333028555,1721771433531,-703.59,0.00010454,2]
[333028557,1721771433541,-3170.59738864,0.000105,2]
[333028559,1721771433554,-348.35,0.000105,2]
[333028561,1721771433567,-554.28354,0.000105,2]
[333028563,1721771433580,-1743.90949909,0.000105,2]
[333028564,1721771433592,-3065.28778418,0.000105,2]
[333028565,1721771433616,-1117.57178809,0.000105,2]
[333028566,1721771433626,-154.90969968,0.00010599,2]
[333028567,1721771433636,-152.16019047,0.00010617,2]
[333028568,1721771433646,-150.0,0.00010632,2]
[333028569,1721771433656,-14925.35832176,0.00010633,2]
[333028575,1721771437945,-3052.32176738,0.000105,2]
[333028576,1721771437957,-666.23816241,0.000105,2]
[333028577,1721771437969,-2406.38218468,0.000105,2]
[333028578,1721771437978,-569.89055243,0.00010633,2]
[333028579,1721771438091,-199.86260066,0.00010633,2]
[333028580,1721771438102,-82596.88852515,0.00010633,2]
[333028581,1721771438112,-7356.36814605,0.0001069,2]
[333028582,1721771438121,-15550.345,0.000107,2]
[333028584,1721771438130,-150.0,0.000107,2]
[333028585,1721771438139,-152.16019047,0.00010713,2]
[333028587,1721771438151,-16862.9535,0.00010799,2]
[333028589,1721771438161,-11495.1204,0.00010799,2]
[333028591,1721771438171,-165.6802,0.00010799,2]
[333028593,1721771438180,-175.6763,0.00010799,2]
[333028595,1721771438191,-461.36,0.00010799,2]
[333028597,1721771438201,-3010.4156,0.00010799,2]
[333028598,1721771438211,-5997.0742,0.00010799,2]
[333028600,1721771438220,-230.0229,0.00010799,2]
[333028602,1721771438230,-466.9961,0.00010799,2]
[333028604,1721771438239,-1010.0,0.000108,2]
[333028606,1721771438249,-152.16019047,0.00010805,2]
[333028608,1721771438258,-1000.0,0.00010811,2]
[333028609,1721771438267,-153.68776239,0.00010858,2]
[333028611,1721771438276,-7000.0,0.00010858,2]
[333028613,1721771438285,-50030.63443024,0.00010899,2]
[333028617,1721771439926,-70750.97906976,0.00010899,2]
[333028618,1721771439937,-309.90660429,0.00010899,2]
[333028619,1721771439947,-2233.21503504,0.000109,2]
[333028620,1721771439957,-1000.0,0.000109,2]
[333028621,1721771439966,-165.03667697,0.000109,2]
[333028622,1721771439975,-303.63608254,0.000109,2]
[333028623,1721771439984,-150.63975881,0.000109,2]
[333028624,1721771439993,-238.64575134,0.000109,2]
[333028625,1721771440002,-604.13810136,0.000109,2]
[333028626,1721771440011,-8638.62281134,0.000109,2]
[333028627,1721771440020,-833.64,0.00010932,2]
[333028628,1721771440029,-420.16,0.00010932,2]
[333028629,1721771440038,-420.16,0.00010932,2]
[333028630,1721771440047,-833.64,0.00010932,2]
[333028631,1721771440057,-833.64,0.00010932,2]
[333028632,1721771440067,-420.16,0.00010932,2]
[333028633,1721771440076,-833.64,0.00010932,2]
[333028634,1721771440085,-420.16,0.00010932,2]
[333028635,1721771440094,-833.64,0.00010932,2]
[333028636,1721771440103,-420.16,0.00010932,2]
[333028637,1721771440113,-278.6,0.00010932,2]
[333028638,1721771440122,-1095.35,0.00010932,2]
[333028639,1721771440131,-719.99999854,0.00010948,3]
[333028640,1721771440141,-24500.5829827,0.00010951,2]
[333028641,1721771440152,-7520.1310932,0.00010951,2]
[333028642,1721771440163,-180.92422887,0.00010957,2]
[333028643,1721771440172,-420.0,0.00010957,2]
[333028644,1721771440181,-500.0,0.00010958,2]
[333028645,1721771440191,-339.268807,0.00010958,2]
[333028646,1721771440200,-498.85006311,0.00010958,2]
[333028647,1721771440210,-500.0,0.00010958,2]
[333028648,1721771440219,-503.31578159,0.00010958,2]
[333028649,1721771440230,-500.0,0.00010958,2]
[333028650,1721771440239,-497.95114037,0.00010958,2]
[333028651,1721771440249,-500.0,0.00010958,2]
[333028652,1721771440258,-500.0,0.00010958,2]
[333028653,1721771440267,-497.6648451,0.00010958,2]
[333028654,1721771440276,-508.46311042,0.00010958,2]